bitfinex/quotes_BTCUSD_20240728
["timestamp","ask_amount","ask_price","bid_price","bid_amount"]
[1722134445410,0.00178404,68240.0,68239.0,1.85184019]
[1722134445744,0.00178404,68240.0,68239.0,1.90380259]
[1722134445949,0.00178404,68240.0,68239.0,1.73006857]
[1722134446190,0.00178404,68240.0,68239.0,1.85184001]
[1722134446401,0.00078404,68240.0,68239.0,1.71606857]
[1722134446754,0.00078404,68240.0,68239.0,1.83783958]
[1722134446962,0.00078404,68240.0,68239.0,1.74603257]
[1722134447289,0.00078404,68240.0,68239.0,1.83783941]
[1722134447483,0.00078404,68240.0,68239.0,1.7480277]
[1722134447638,0.02477883,68240.0,68239.0,1.5255577]
[1722134447845,0.02477883,68240.0,68239.0,1.48159857]
[1722134448043,0.02377883,68240.0,68239.0,1.46759857]
[1722134448266,0.02377883,68240.0,68239.0,1.70206857]
[1722134448492,0.02477883,68240.0,68239.0,1.48159857]
[1722134448905,0.02477883,68240.0,68239.0,1.73006857]
[1722134449121,0.02477883,68240.0,68239.0,1.49559857]
[1722134450047,0.00178404,68240.0,68239.0,1.49559857]
[1722134451574,0.02477917,68240.0,68239.0,1.49559857]
[1722134452389,0.00178404,68240.0,68239.0,1.49559857]
[1722134455401,0.02477917,68240.0,68239.0,1.49559857]
[1722134455786,0.00178404,68240.0,68239.0,1.49559857]
[1722134456446,0.00178404,68240.0,68239.0,1.35729857]
[1722134459091,0.0247798,68240.0,68239.0,1.35729857]
[1722134460100,0.0247798,68240.0,68239.0,1.207039]
[1722134463130,0.0237798,68240.0,68239.0,1.179039]
[1722134463506,0.0247798,68240.0,68239.0,1.207039]
[1722134463938,0.0237798,68240.0,68239.0,1.193039]
[1722134464357,0.00178404,68240.0,68239.0,1.207039]
[1722134464719,0.08178404,68240.0,68239.0,1.207039]
[1722134464972,0.08178404,68240.0,68239.0,1.184039]
[1722134467710,0.10477988,68240.0,68239.0,1.184039]
[1722134468267,0.02477988,68240.0,68239.0,1.184039]
[1722134469245,0.02477988,68240.0,68239.0,1.38741347]
[1722134469563,0.02477988,68240.0,68239.0,1.49616769]
[1722134471604,0.02477988,68240.0,68239.0,1.66942726]
[1722134471801,0.02477988,68240.0,68239.0,1.62547188]
[1722134472136,0.00178404,68240.0,68239.0,1.62547188]
[1722134472294,0.00178404,68240.0,68239.0,1.62547173]
[1722134472499,0.00178404,68240.0,68239.0,1.69143901]
[1722134473232,0.00178404,68240.0,68239.0,1.92590901]
[1722134473671,0.00178404,68240.0,68239.0,1.69143901]
[1722134474653,0.00178404,68240.0,68239.0,1.62547173]
[1722134474878,0.00178404,68240.0,68239.0,1.69143901]
[1722134475090,0.00178404,68240.0,68239.0,1.50369857]
[1722134475382,0.02477919,68240.0,68239.0,1.62547216]
[1722134475575,0.02477919,68240.0,68239.0,1.92590944]
[1722134475926,0.02477919,68240.0,68239.0,1.85994216]
[1722134476127,0.02477919,68240.0,68239.0,1.62547216]
[1722134476328,0.02477919,68240.0,68239.0,1.69146033]
[1722134476530,0.00178404,68240.0,68239.0,1.69146033]
[1722134476778,0.00178404,68240.0,68239.0,2.01663067]
[1722134477021,0.00178404,68240.0,68239.0,1.69146033]
[1722134477418,0.00178404,68240.0,68239.0,2.01663153]
[1722134477651,0.00178404,68240.0,68239.0,1.71997196]
[1722134477823,0.14598404,68240.0,68239.0,1.32881259]
[1722134478526,0.14598404,68240.0,68239.0,1.32881551]
[1722134478984,0.02477995,68240.0,68239.0,1.32881551]
[1722134479403,0.00178404,68240.0,68239.0,1.32881551]
[1722134481740,0.00178404,68240.0,68239.0,1.39482604]
[1722134481940,0.00178404,68240.0,68239.0,1.27304953]
[1722134482254,0.02477987,68240.0,68239.0,1.39482604]
[1722134482855,0.02477987,68240.0,68239.0,1.30581551]
[1722134483430,0.00178404,68240.0,68239.0,1.30581551]
[1722134483632,0.00178404,68240.0,68239.0,0.949569]
[1722134483799,0.14598404,68240.0,68239.0,0.949569]
[1722134484815,0.14598404,68240.0,68239.0,0.935569]
[1722134485016,0.14598404,68240.0,68239.0,0.949569]
[1722134485443,0.14598404,68240.0,68239.0,0.935569]
[1722134485444,0.14498404,68240.0,68239.0,0.935569]
[1722134485923,0.14498404,68240.0,68239.0,0.949569]
[1722134485924,0.14598404,68240.0,68239.0,0.949569]
[1722134486743,0.1689805,68240.0,68239.0,0.949569]
[1722134487613,0.1689805,68240.0,68239.0,0.380629]
[1722134487757,0.2179208,68240.0,68239.0,0.380629]
[1722134487959,0.2179209,68240.0,68239.0,0.380629]
[1722134488169,0.2179209,68240.0,68239.0,0.615099]
[1722134488170,0.21147638,68240.0,68239.0,0.615099]
[1722134491074,0.16253598,68240.0,68239.0,0.615099]
[1722134491284,0.21141263,68240.0,68239.0,0.615099]
[1722134491455,0.2178583,68240.0,68239.0,0.615099]
[1722134491649,0.23442526,68240.0,68239.0,0.615099]
[1722134491797,0.21142765,68240.0,68239.0,0.615099]
[1722134494175,0.16255148,68240.0,68239.0,0.615099]
[1722134494553,0.14598404,68240.0,68239.0,0.615099]
[1722134499390,0.16898165,68240.0,68239.0,0.615099]
[1722134499837,0.14598404,68240.0,68239.0,0.615099]
[1722134502374,0.16249187,68240.0,68239.0,0.615099]
[1722134502575,0.16249187,68240.0,68239.0,0.849569]
[1722134502926,0.14598404,68240.0,68239.0,0.849569]
[1722134503229,0.16898144,68240.0,68239.0,0.849569]
[1722134503432,0.16898144,68240.0,68239.0,0.615099]
[1722134503634,0.18554815,68240.0,68239.0,0.615099]
[1722134503833,0.18554815,68240.0,68239.0,0.849569]
[1722134504035,0.16898144,68240.0,68239.0,0.849569]
[1722134504260,0.14598404,68240.0,68239.0,0.849569]
[1722134504999,0.00178404,68240.0,68239.0,0.849569]
[1722134507308,0.00178404,68240.0,68239.0,1.222939]
[1722134507480,0.00178404,68240.0,68239.0,1.245939]
[1722134508883,0.02478008,68240.0,68239.0,1.245939]
[1722134511672,0.00178404,68240.0,68239.0,1.245939]
[1722134513854,0.00178404,68240.0,68239.0,1.011469]
[1722134514463,0.00178404,68240.0,68239.0,1.245939]
[1722134515388,0.00178404,68240.0,68239.0,1.011469]
[1722134515590,0.00178404,68240.0,68239.0,1.024869]
[1722134516041,0.00178404,68240.0,68239.0,0.948469]
[1722134516653,0.00178404,68240.0,68239.0,0.925469]
[1722134517153,0.14298404,68240.0,68239.0,0.925469]
[1722134519199,0.16598046,68240.0,68239.0,0.925469]
[1722134519717,0.02478046,68240.0,68239.0,0.925469]
[1722134522556,0.00178404,68240.0,68239.0,0.925469]
[1722134523927,0.08048404,68240.0,68239.0,0.925469]
[1722134527017,0.10348123,68240.0,68239.0,0.925469]
[1722134527477,0.08048404,68240.0,68239.0,0.925469]
[1722134530074,0.1034812,68240.0,68239.0,0.849569]
[1722134530278,0.1659812,68240.0,68239.0,0.615099]
[1722134530498,0.19241905,68240.0,68239.0,0.028924]
[1722134530695,0.19241905,68240.0,68239.0,0.146159]
[1722134530696,0.22690889,68240.0,68239.0,0.146159]
[1722134530905,0.22690889,68240.0,68239.0,0.028924]
[1722134531120,0.57860789,68240.0,68239.0,0.028924]
[1722134531380,0.81307389,68240.0,68239.0,0.014924]
[1722134531690,0.81207389,68240.0,68239.0,0.000924]
[1722134531903,0.81307389,68240.0,68239.0,0.026924]
[1722134532100,0.81307389,68240.0,68239.0,0.014924]
[1722134532295,0.76363888,68240.0,68239.0,0.014924]
[1722134532538,0.81196929,68240.0,68239.0,0.007924]
[1722134533473,0.81196929,68240.0,68239.0,0.014924]
[1722134533474,0.83596946,68240.0,68239.0,0.014924]
[1722134535297,0.60150346,68240.0,68239.0,0.014924]
[1722134535706,0.55217305,68240.0,68239.0,0.014924]
[1722134535920,0.60173428,68240.0,68239.0,0.014924]
[1722134536261,0.25003528,68240.0,68239.0,0.601099]
[1722134536465,0.10883528,68240.0,68239.0,0.601099]
[1722134536648,0.10883528,68240.0,68239.0,0.835569]
[1722134536649,0.05927405,68240.0,68239.0,0.835569]
[1722134536855,0.02478421,68240.0,68239.0,0.835569]
[1722134538982,0.02478421,68240.0,68239.0,0.84436003]
[1722134540039,0.02478421,68240.0,68239.0,1.07883003]
[1722134540651,0.00178404,68240.0,68239.0,1.07883003]
[1722134541082,0.00078404,68240.0,68239.0,1.07183003]
[1722134541199,0.00178404,68240.0,68239.0,1.07183003]
[1722134541400,0.00178404,68240.0,68239.0,1.08583003]
[1722134541818,0.00078404,68240.0,68239.0,1.07883003]
[1722134542067,0.00178404,68240.0,68239.0,1.09283003]
[1722134547910,0.02478066,68240.0,68239.0,1.09283003]
[1722134552719,0.00178404,68240.0,68239.0,1.09283003]
[1722134557294,0.02478075,68240.0,68239.0,1.09283003]
[1722134557694,0.00178404,68240.0,68239.0,1.09283003]
[1722134559366,0.00178404,68240.0,68239.0,0.85836003]
[1722134560522,0.02478079,68240.0,68239.0,0.85836003]
[1722134560804,0.00178404,68240.0,68239.0,0.85836003]
[1722134563921,0.07748404,68240.0,68239.0,0.85836003]
[1722134565459,0.10048139,68240.0,68239.0,0.85836003]
[1722134565698,0.07748404,68240.0,68239.0,0.85836003]
[1722134566882,0.00178404,68240.0,68239.0,0.85836003]
[1722134568486,0.02478083,68240.0,68239.0,0.85836003]
[1722134569584,0.00178404,68240.0,68239.0,0.85836003]
[1722134572799,0.02478083,68240.0,68239.0,0.85836003]
[1722134573304,0.00178404,68240.0,68239.0,0.85836003]
[1722134576700,0.02478083,68240.0,68239.0,0.85836003]
[1722134577968,0.00178404,68240.0,68239.0,0.85836003]
[1722134581153,0.00178404,68240.0,68239.0,0.92276003]
[1722134581378,0.02478075,68240.0,68239.0,0.92276003]
[1722134581842,0.00178404,68240.0,68239.0,0.92276003]
[1722134585097,0.02478049,68240.0,68239.0,0.92276003]
[1722134586857,0.02478049,68240.0,68239.0,0.85836003]
[1722134596297,0.00178404,68240.0,68239.0,1.09283003]
[1722134598366,0.00178404,68240.0,68239.0,0.85836003]
[1722134598978,0.00178404,68240.0,68239.0,1.09283003]
[1722134599510,0.02478053,68240.0,68239.0,1.09283003]
[1722134600708,0.00178404,68240.0,68239.0,1.09283003]
[1722134603966,0.0247807,68240.0,68239.0,1.09283003]
[1722134604350,0.00178404,68240.0,68239.0,1.09283003]
[1722134607619,0.02478049,68240.0,68239.0,1.09283003]
[1722134608150,0.02478049,68240.0,68239.0,1.13686647]
[1722134608579,0.02478049,68240.0,68239.0,1.09283003]
[1722134608913,0.00178404,68240.0,68239.0,1.09283003]
[1722134610201,0.00178404,68240.0,68239.0,1.13685715]
[1722134610915,0.00178404,68240.0,68239.0,1.13685768]
[1722134611131,0.00178404,68240.0,68239.0,1.09283003]
[1722134611354,0.00178404,68240.0,68239.0,1.1368578]
[1722134611932,0.02478036,68240.0,68239.0,1.1368578]
[1722134612130,0.00178404,68240.0,68239.0,1.09283003]
[1722134612572,0.00178404,68240.0,68239.0,1.1368578]
[1722134613070,0.00178404,68240.0,68239.0,1.13685361]
[1722134613373,0.00178404,68240.0,68239.0,1.09283003]
[1722134615119,0.00178404,68240.0,68239.0,1.13685186]
[1722134615345,0.00178404,68240.0,68239.0,1.09283003]
[1722134615576,0.02478036,68240.0,68239.0,1.13685186]
[1722134616203,0.02478036,68240.0,68239.0,1.09283003]
[1722134617210,0.00178404,68240.0,68239.0,1.09283003]
[1722134618091,0.00178404,68240.0,68239.0,0.85836003]
[1722134618704,0.00178404,68240.0,68239.0,1.09283003]
[1722134620108,0.02478065,68240.0,68239.0,1.09283003]
[1722134620287,0.02478065,68240.0,68239.0,0.85836003]
[1722134620929,0.02478065,68240.0,68239.0,1.09283003]
[1722134621781,0.00178404,68240.0,68239.0,1.09283003]
[1722134622558,0.00178404,68240.0,68239.0,0.85836003]
[1722134623206,0.00178404,68240.0,68239.0,1.09283003]
[1722134623739,0.00178404,68240.0,68239.0,1.3839896]
[1722134623864,0.00178404,68240.0,68239.0,1.45100926]
[1722134624058,0.00178404,68240.0,68239.0,1.45100862]
[1722134624780,0.02477977,68240.0,68239.0,1.45100862]
[1722134625016,0.00178404,68240.0,68239.0,1.45100862]
[1722134625977,0.00178404,68240.0,68239.0,1.4069896]
[1722134626189,0.00178404,68240.0,68239.0,1.45100629]
[1722134627701,0.00178404,68240.0,68239.0,1.4069896]
[1722134627869,0.00178404,68240.0,68239.0,1.45100244]
[1722134628246,0.02477977,68240.0,68239.0,1.45100244]
[1722134628826,0.02477977,68240.0,68239.0,1.5947876]
[1722134629028,0.02477977,68240.0,68239.0,1.52876834]
[1722134629256,0.02477977,68240.0,68239.0,1.91993741]
[1722134629432,0.02477977,68240.0,68239.0,1.59476962]
[1722134629630,0.00178404,68240.0,68239.0,1.45099463]
[1722134629850,0.00178404,68240.0,68239.0,1.91993572]
[1722134630276,0.00178404,68240.0,68239.0,1.91993153]
[1722134630479,0.00178404,68240.0,68239.0,1.52876426]
[1722134630676,0.00178404,68240.0,68239.0,1.4069896]
[1722134630878,0.00178404,68240.0,68239.0,1.85392975]
[1722134631108,0.00178404,68240.0,68239.0,1.91992766]
[1722134631317,0.00178404,68240.0,68239.0,1.52876293]
[1722134633160,0.02477977,68240.0,68239.0,1.52876293]
[1722134633919,0.00178404,68240.0,68239.0,1.52876293]
[1722134634117,0.00178404,68240.0,68239.0,1.52876447]
[1722134634319,0.00178404,68240.0,68239.0,1.76323447]
[1722134634520,0.00084,68244.0,68243.0,1.055052]
[1722134634894,0.00084,68244.0,68243.0,1.56608715]
[1722134635038,0.00084,68244.0,68243.0,1.87833615]
[1722134635239,0.00084,68244.0,68243.0,1.94530512]
[1722134635424,0.00084,68244.0,68243.0,1.90133615]
[1722134635626,0.00084,68244.0,68243.0,1.90720915]
[1722134636228,0.00084,68244.0,68243.0,1.95317663]
[1722134636428,0.00084,68244.0,68243.0,1.96517663]
[1722134636833,0.00084,68244.0,68243.0,1.96417663]
[1722134637351,0.02383442,68244.0,68243.0,1.84540413]
[1722134637559,0.02383442,68244.0,68243.0,1.98117167]
[1722134637920,0.02383442,68244.0,68243.0,2.32829449]
[1722134638058,0.02383442,68244.0,68243.0,2.26234914]
[1722134638239,0.02383442,68244.0,68243.0,2.3282782]
[1722134638442,0.02383442,68244.0,68243.0,2.24834914]
[1722134638644,0.02383442,68244.0,68243.0,2.23434914]
[1722134639000,0.02383442,68244.0,68243.0,2.26234914]
[1722134639149,0.02383442,68244.0,68243.0,2.24834914]
[1722134639550,0.02383442,68244.0,68243.0,2.26234914]
[1722134640155,0.02383442,68244.0,68243.0,2.35027627]
[1722134640791,0.02383442,68244.0,68243.0,2.33621464]
[1722134641148,0.02383442,68244.0,68243.0,1.93719966]
[1722134641386,0.02383442,68244.0,68243.0,2.35021463]
[1722134642151,0.02383442,68244.0,68243.0,2.26233151]
[1722134643106,0.02383442,68244.0,68243.0,2.26233188]
[1722134643558,0.02383442,68244.0,68243.0,2.32822039]
[1722134644801,0.02383442,68244.0,68243.0,2.32622039]
[1722134645473,0.02383442,68244.0,68243.0,2.00108827]
[1722134646517,0.00284,68249.0,68243.0,2.00108827]
[1722134646518,0.00284,68249.0,68248.0,1.289414]
[1722134646823,0.00284,68249.0,68248.0,1.51557357]
[1722134647097,0.14554,68249.0,68248.0,1.22823457]
[1722134647273,0.00284,68249.0,68248.0,1.30413457]
[1722134647659,0.00284,68249.0,68248.0,1.31813457]
[1722134648599,0.00284,68249.0,68248.0,1.33213457]
[1722134651721,0.00284,68249.0,68248.0,1.34098057]
[1722134655335,0.02583375,68249.0,68248.0,1.34098057]
[1722134662312,0.00284,68249.0,68248.0,1.34098057]
[1722134663193,0.00284,68249.0,68248.0,1.46274038]
[1722134663792,0.00284,68249.0,68248.0,1.34098057]
[1722134663992,0.14624,68249.0,68248.0,1.34098057]
[1722134664192,0.14624,68249.0,68248.0,1.190721]
[1722134664391,0.14624,68249.0,68248.0,1.167721]
[1722134667254,0.14624,68249.0,68248.0,1.28948429]
[1722134667437,0.14624,68249.0,68248.0,1.167721]
[1722134668978,0.14624,68249.0,68248.0,1.28948452]
[1722134669663,0.14624,68249.0,68248.0,1.28948392]
[1722134670073,0.1692338,68249.0,68248.0,1.167721]
[1722134671456,0.14624,68249.0,68248.0,1.167721]
[1722134674658,0.1692338,68249.0,68248.0,1.167721]
[1722134675864,0.1692338,68249.0,68248.0,1.28948341]
[1722134676068,0.1692338,68249.0,68248.0,1.167721]
[1722134680189,0.1692338,68249.0,68248.0,1.21168852]
[1722134682679,0.1692338,68249.0,68248.0,1.167721]
[1722134682909,0.1692338,68249.0,68248.0,1.21170009]
[1722134683106,0.14624,68249.0,68248.0,1.21170009]
[1722134686057,0.14624,68249.0,68248.0,1.167721]
[1722134686275,0.14624,68249.0,68248.0,1.21170301]
[1722134686478,0.16923371,68249.0,68248.0,1.21170301]
[1722134687508,0.14624,68249.0,68248.0,1.21170301]
[1722134687673,0.08424,68249.0,68248.0,1.21170301]
[1722134689627,0.08424,68249.0,68248.0,1.2894846]
[1722134689852,0.08424,68249.0,68248.0,1.21170229]
[1722134690453,0.08424,68249.0,68248.0,1.167721]
[1722134690633,0.08424,68249.0,68248.0,1.33346567]
[1722134690819,0.1072338,68249.0,68248.0,1.28948465]
[1722134691014,0.1072338,68249.0,68248.0,1.28948461]
[1722134692855,0.1072338,68249.0,68248.0,1.28948465]
[1722134693271,0.0258338,68249.0,68248.0,1.28948465]
[1722134693478,0.0258338,68249.0,68248.0,1.36608465]
[1722134693712,0.0258338,68249.0,68248.0,1.59245797]
[1722134693884,0.0258338,68249.0,68248.0,1.71421802]
[1722134694090,0.0258338,68249.0,68248.0,1.80217745]
[1722134695406,0.00284,68249.0,68248.0,1.80217745]
[1722134696359,0.00284,68249.0,68248.0,1.86447759]
[1722134696745,0.00284,68249.0,68248.0,1.86647759]
[1722134696979,0.00284,68249.0,68248.0,1.41958057]
[1722134697178,0.00284,68249.0,68248.0,1.86645523]
[1722134697466,0.00284,68249.0,68248.0,1.97637633]
[1722134698446,0.00284,68249.0,68248.0,1.93045523]
[1722134698793,0.00284,68249.0,68248.0,2.16489423]
[1722134698948,0.00284,68249.0,68248.0,2.16289423]
[1722134700391,0.00284,68249.0,68248.0,2.16489194]
[1722134700595,0.00284,68249.0,68248.0,2.16489108]
[1722134700804,0.00284,68249.0,68248.0,2.16489109]
[1722134702086,0.02583247,68249.0,68248.0,2.16489109]
[1722134702630,0.02583247,68249.0,68248.0,2.15089519]
[1722134702841,0.02583247,68249.0,68248.0,2.22482889]
[1722134703032,0.02583247,68249.0,68248.0,2.23882889]
[1722134703194,0.02583247,68249.0,68248.0,2.25282889]
[1722134704359,0.02583247,68249.0,68248.0,2.23882889]
[1722134704765,0.02583247,68249.0,68248.0,2.25282889]
[1722134705003,0.02583247,68249.0,68248.0,2.25082889]
[1722134705912,0.02583247,68249.0,68248.0,1.83777373]
[1722134706145,0.02583247,68249.0,68248.0,2.2508152]
[1722134706770,0.00284,68249.0,68248.0,2.2508152]
[1722134708403,0.00284,68249.0,68248.0,2.2528152]
[1722134709345,0.00284,68249.0,68248.0,2.13105315]
[1722134709465,0.00284,68249.0,68248.0,2.250807]
[1722134710224,0.02583243,68249.0,68248.0,2.250807]
[1722134710801,0.00284,68249.0,68248.0,2.250807]
[1722134711567,0.00284,68249.0,68248.0,2.16289129]
[1722134711790,0.00284,68249.0,68248.0,2.250807]
[1722134712390,0.00284,68249.0,68248.0,2.16289129]
[1722134712754,0.00284,68249.0,68248.0,2.16289275]
[1722134713113,0.00284,68249.0,68248.0,2.16289669]
[1722134714119,0.02583264,68249.0,68248.0,2.16289669]
[1722134714524,0.02583264,68249.0,68248.0,2.25081084]
[1722134714942,0.02583264,68249.0,68248.0,2.25080976]
[1722134715561,0.02583264,68249.0,68248.0,2.18680976]
[1722134715915,0.02583264,68249.0,68248.0,2.18680967]
[1722134718027,0.00284,68249.0,68248.0,2.18680967]
[1722134718592,0.00284,68249.0,68248.0,1.79987067]
[1722134718793,0.14364,68249.0,68248.0,1.85379576]
[1722134719019,0.14364,68249.0,68248.0,1.5286742]
[1722134719238,0.14364,68249.0,68248.0,1.34098057]
[1722134719392,0.14364,68249.0,68248.0,1.44874041]
[1722134719595,0.14364,68249.0,68248.0,1.51468201]
[1722134719801,0.14364,68249.0,68248.0,1.83981328]
[1722134720019,0.14364,68249.0,68248.0,1.85381328]
[1722134720223,0.14364,68249.0,68248.0,1.83981328]
[1722134720634,0.14364,68249.0,68248.0,1.85381328]
[1722134720850,0.14364,68249.0,68248.0,1.83981328]
[1722134721046,0.14364,68249.0,68248.0,1.82581328]
[1722134721246,0.14364,68249.0,68248.0,1.51468201]
[1722134721453,0.10493337,68249.0,68248.0,1.52868201]
[1722134721658,0.10493337,68249.0,68248.0,1.85381348]
[1722134722110,0.08194,68249.0,68248.0,1.85381348]
[1722134722436,0.08194,68249.0,68248.0,1.85381741]
[1722134722843,0.08194,68249.0,68248.0,1.46273914]
[1722134723085,0.08194,68249.0,68248.0,1.85381972]
[1722134725253,0.10493337,68249.0,68248.0,1.85381972]
[1722134725655,0.10493337,68249.0,68248.0,1.46273967]
[1722134725866,0.10493337,68249.0,68248.0,1.85382554]
[1722134727814,0.10493337,68249.0,68248.0,1.46273967]
[1722134728558,0.16663337,68249.0,68248.0,1.2135801]
[1722134728777,0.16663337,68249.0,68248.0,1.2894801]
[1722134728985,0.16663337,68249.0,68248.0,1.35543408]
[1722134729292,0.16663337,68249.0,68248.0,1.28948318]
[1722134729715,0.16663337,68249.0,68248.0,1.33346006]
[1722134730391,0.14364,68249.0,68248.0,1.33346006]
[1722134731112,0.14364,68249.0,68248.0,1.31946006]
[1722134731313,0.14364,68249.0,68248.0,1.33346006]
[1722134731913,0.14364,68249.0,68248.0,1.31946006]
[1722134732116,0.14364,68249.0,68248.0,1.27548318]
[1722134732317,0.14364,68249.0,68248.0,1.167721]
[1722134732515,0.14364,68249.0,68248.0,1.28948306]
[1722134732744,0.14364,68249.0,68248.0,1.167721]
[1722134732949,0.14364,68249.0,68248.0,1.28948272]
[1722134733896,0.14364,68249.0,68248.0,1.35544835]
[1722134733897,0.16663337,68249.0,68248.0,1.35544835]
[1722134734251,0.14364,68249.0,68248.0,1.35544835]
[1722134734449,0.14364,68249.0,68248.0,1.28948272]
[1722134735801,0.14364,68249.0,68248.0,1.2894827]
[1722134737535,0.16663337,68249.0,68248.0,1.2894827]
[1722134738222,0.14364,68249.0,68248.0,1.2894827]
[1722134739064,0.14364,68249.0,68248.0,1.167721]
[1722134739206,0.14364,68249.0,68248.0,1.28948291]
[1722134739607,0.14364,68249.0,68248.0,1.35545608]
[1722134739940,0.14364,68249.0,68248.0,1.28948291]
[1722134741520,0.16663337,68249.0,68248.0,1.28948291]
[1722134741747,0.02583337,68249.0,68248.0,1.28948291]
[1722134741985,0.02583337,68249.0,68248.0,1.35545608]
[1722134742184,0.02583337,68249.0,68248.0,1.28948291]
[1722134742346,0.02583337,68249.0,68248.0,1.28948265]
[1722134742548,0.00284,68249.0,68248.0,1.28948265]
[1722134742745,0.00284,68249.0,68248.0,1.28948259]
[1722134743640,0.14794,68249.0,68248.0,1.28948259]
[1722134743796,0.14794,68249.0,68248.0,1.33344839]
[1722134745477,0.14794,68249.0,68248.0,1.167721]
[1722134745671,0.14794,68249.0,68248.0,1.33345754]
[1722134745874,0.17093357,68249.0,68248.0,1.28948542]
[1722134746330,0.14794,68249.0,68248.0,1.28948542]
[1722134746556,0.14794,68249.0,68248.0,0.388504]
[1722134746828,0.26217319,68249.0,68248.0,0.379658]
[1722134747185,0.26217319,68249.0,68248.0,0.014]
[1722134747386,0.26217319,68249.0,68248.0,0.028]
[1722134747387,0.23304438,68249.0,68248.0,0.028]
[1722134747590,0.26218355,68249.0,68248.0,0.028]
[1722134747792,0.26218355,68249.0,68248.0,0.014]
[1722134748178,0.26218355,68249.0,68248.0,0.145219]
[1722134748388,0.26218355,68249.0,68248.0,0.131219]
[1722134748587,0.26218355,68249.0,68248.0,0.117219]
[1722134748793,0.26264874,68249.0,68248.0,0.138219]
[1722134749149,0.28564515,68249.0,68248.0,0.372658]
[1722134750457,0.28564515,68249.0,68248.0,0.138219]
[1722134750652,0.28564515,68249.0,68248.0,0.372658]
[1722134751232,0.28564515,68249.0,68248.0,0.138219]
[1722134751850,0.28564515,68249.0,68248.0,0.372658]
[1722134752046,0.25604079,68249.0,68248.0,0.372658]
[1722134752248,0.28580447,68249.0,68248.0,0.372658]
[1722134752452,0.25604079,68249.0,68248.0,0.372658]
[1722134752653,0.28580447,68249.0,68248.0,0.372658]
[1722134755459,0.25604079,68249.0,68248.0,0.372658]
[1722134755815,0.25604079,68249.0,68248.0,0.138219]
[1722134757606,0.25604079,68249.0,68248.0,0.021]
[1722134758477,0.25604079,68249.0,68248.0,0.138219]
[1722134758884,0.23304438,68249.0,68248.0,0.138219]
[1722134761936,0.25604098,68249.0,68248.0,0.138219]
[1722134763220,0.25604098,68249.0,68248.0,0.021]
[1722134763753,0.25604098,68249.0,68248.0,0.138219]
[1722134765549,0.25604098,68249.0,68248.0,0.448558]
[1722134765749,0.1709366,68249.0,68248.0,0.682997]
[1722134768438,0.25452958,68249.0,68248.0,0.682997]
[1722134768730,0.1709366,68249.0,68248.0,0.682997]
[1722134770844,0.14794,68249.0,68248.0,0.682997]
[1722134771715,0.14794,68249.0,68248.0,0.607097]
[1722134771919,0.14794,68249.0,68248.0,0.021]
[1722134771920,0.26145073,68249.0,68248.0,0.021]
[1722134772086,0.37866773,68249.0,68248.0,0.021]
[1722134772288,0.61310273,68249.0,68248.0,0.021]
[1722134773122,0.61310273,68249.0,68248.0,0.011]
[1722134773331,0.1418,68247.0,68244.0,0.11815]
[1722134773567,0.11351073,68246.0,68244.0,0.11815]
[1722134773767,0.25531073,68245.0,68244.0,0.11815]
[1722134773967,0.25545384,68245.0,68244.0,0.11815]
[1722134777353,0.25545796,68245.0,68244.0,0.11815]
[1722134778515,0.37268196,68245.0,68244.0,0.000924]
[1722134778717,0.25545796,68245.0,68244.0,0.000924]
[1722134780293,0.37268196,68245.0,68244.0,0.000924]
[1722134780491,0.34185913,68245.0,68244.0,0.000924]
[1722134780756,0.25545604,68245.0,68244.0,0.000924]
[1722134781109,0.25537065,68245.0,68244.0,0.000924]
[1722134781802,0.278368,68245.0,68244.0,0.000924]
[1722134782839,0.27829169,68245.0,68244.0,0.000924]
[1722134783043,0.37251834,68245.0,68244.0,0.000924]
[1722134783248,0.91731634,68245.0,68244.0,0.000924]
[1722134783568,1.21634873,68245.0,68244.0,0.000924]
[1722134783772,1.21636935,68245.0,68244.0,0.000924]
[1722134784590,1.21636935,68245.0,68244.0,0.001924]
[1722134784591,0.98292035,68245.0,68244.0,0.001924]
[1722134784823,0.67257135,68245.0,68244.0,0.000924]
[1722134785026,0.67341135,68245.0,68244.0,0.001924]
[1722134785228,0.67441135,68245.0,68244.0,0.001924]
[1722134786252,0.46296159,68245.0,68244.0,0.001924]
[1722134786492,0.28114313,68245.0,68244.0,0.001924]
[1722134786629,0.39836713,68245.0,68244.0,0.002924]
[1722134787085,0.39871753,68245.0,68244.0,0.001924]
[1722134787438,0.39871753,68245.0,68244.0,0.002924]
[1722134787439,0.37671829,68245.0,68244.0,0.002924]
[1722134789480,0.61116729,68245.0,68244.0,0.002924]
[1722134790310,0.611248,68245.0,68244.0,0.002924]
[1722134790712,0.58014813,68245.0,68244.0,0.002924]
[1722134790969,0.61124718,68245.0,68244.0,0.002924]
[1722134792107,0.37802631,68245.0,68244.0,0.002924]
[1722134792308,0.37679818,68245.0,68244.0,0.002924]
[1722134792742,0.61124718,68245.0,68244.0,0.002924]
[1722134793706,0.083926,68242.0,68240.0,0.118156]
[1722134793918,0.11393418,68241.0,68240.0,0.118156]
[1722134795308,0.11493418,68241.0,68240.0,0.118156]
[1722134795537,0.13793333,68241.0,68240.0,0.118156]
[1722134796565,0.13893333,68241.0,68240.0,0.118156]
[1722134796990,0.10783428,68241.0,68240.0,0.118156]
[1722134797190,0.1387038,68241.0,68240.0,0.118156]
[1722134797842,0.2138038,68241.0,68240.0,0.118156]
[1722134798593,0.2800038,68241.0,68240.0,0.118156]
[1722134799599,0.25700465,68241.0,68240.0,0.118156]
[1722134800430,0.25698364,68241.0,68240.0,0.118156]
[1722134800988,0.25698263,68241.0,68240.0,0.118156]
[1722134801318,0.25698263,68241.0,68240.0,0.000924]
[1722134803082,0.27998199,68241.0,68240.0,0.000924]
[1722134803294,0.25698263,68241.0,68240.0,0.000924]
[1722134803693,0.25696935,68241.0,68240.0,0.000924]
[1722134805584,0.37420035,68241.0,68240.0,0.000924]
[1722134806386,0.39719971,68241.0,68240.0,0.000924]
[1722134806895,0.63152639,68241.0,68240.0,0.000924]
[1722134807200,0.39706339,68241.0,68240.0,0.000924]
[1722134807620,0.34336613,68241.0,68240.0,0.000924]
[1722134807822,0.3741163,68241.0,68240.0,0.000924]
[1722134809707,0.6085793,68241.0,68240.0,0.000924]
[1722134810196,1.0775053,68241.0,68240.0,0.000924]
[1722134810339,1.04675513,68241.0,68240.0,0.000924]
[1722134810535,1.07734232,68241.0,68240.0,0.000924]
[1722134811657,1.1412146,68241.0,68240.0,0.000924]
[1722134813524,1.52258472,68241.0,68240.0,0.000924]